fUSD/lending_fUSD_20260402
["ID","MTS","AMOUNT","RATE_DAILY","PERIOD"]
[419307332,1775137842729,-500.0,0.00016015,2]
[419307333,1775137842739,-500.0,0.00016015,2]
[419307334,1775137842750,-500.0,0.00016015,2]
[419307335,1775137842760,-500.0,0.00016015,2]
[419307336,1775137842772,-500.0,0.00016015,2]
[419307337,1775137842782,-500.0,0.00016015,2]
[419307338,1775137842793,-500.0,0.00016015,2]
[419307339,1775137842804,-500.0,0.00016015,2]
[419307340,1775137842814,-500.0,0.00016015,2]
[419307341,1775137842827,-500.0,0.00016015,2]
[419307342,1775137842837,-500.0,0.00016015,2]
[419307343,1775137842847,-500.0,0.00016015,2]
[419307345,1775137842858,-500.0,0.00016015,2]
[419307347,1775137842868,-500.0,0.00016015,2]
[419307348,1775137842878,-500.0,0.00016015,2]
[419307349,1775137842889,-500.0,0.00016015,2]
[419307350,1775137842899,-500.0,0.00016015,2]
[419307352,1775137842910,-500.0,0.00016015,2]
[419307353,1775137842920,-500.0,0.00016015,2]
[419307362,1775137843138,-500.0,0.00016015,2]
[419307364,1775137843149,-500.0,0.00016015,2]
[419307366,1775137843160,-500.0,0.00016015,2]
[419307368,1775137843170,-500.0,0.00016015,2]
[419307370,1775137843180,-500.0,0.00016015,2]
[419307372,1775137843191,-500.0,0.00016015,2]
[419307374,1775137843201,-500.0,0.00016015,2]
[419307376,1775137843211,-500.0,0.00016015,2]
[419307378,1775137843220,-500.0,0.00016015,2]
[419307380,1775137843230,-500.0,0.00016015,2]
[419307382,1775137843241,-402.1199774,0.00016015,2]
[419307384,1775137843256,-500.0,0.00016015,2]
[419307386,1775137843267,-500.0,0.00016015,2]
[419307388,1775137843278,-500.0,0.00016015,2]
[419307390,1775137843288,-500.0,0.00016015,2]
[419307392,1775137843298,-500.0,0.00016015,2]
[419307394,1775137843310,-500.0,0.00016015,2]
[419307395,1775137843320,-500.0,0.00016015,2]
[419307396,1775137843330,-500.0,0.00016015,2]
[419307397,1775137843341,-500.0,0.00016015,2]
[419307398,1775137843351,-500.0,0.00016015,2]
[419307399,1775137843361,-500.0,0.00016015,2]
[419307400,1775137843370,-500.0,0.00016015,2]
[419307401,1775137843381,-1500000.0,0.00016016,2]
[419307402,1775137843391,-433.0,0.00016039,2]
[419307403,1775137843401,-208.63150306,0.000161,2]
[419307404,1775137843411,-2000.0,0.000161,2]
[419307405,1775137843421,-835.50325244,0.00016116,2]
[419307406,1775137843431,-206.67308828,0.00016116,2]
[419307407,1775137843442,-6334.24164418,0.00016116,2]
[419307408,1775137843452,-1600.0,0.00016164,2]
[419307409,1775137843463,-1500.0,0.00016171,2]
[419307410,1775137843474,-508.0,0.000162,2]
[419307411,1775137843484,-208.63150306,0.000162,2]
[419307412,1775137843494,-2000.0,0.000162,2]
[419307413,1775137843503,-1571.0,0.00016222,2]
[419307414,1775137843515,-1507.0,0.00016222,2]
[419307415,1775137843526,-2000.0,0.000163,2]
[419307416,1775137843536,-1304.37006543,0.00016364,2]
[419307417,1775137843546,-2000.0,0.000164,2]
[419307418,1775137843556,-897.7,0.00016438,2]
[419307419,1775137843567,-2500.0,0.00016438,2]
[419307420,1775137843576,-2500.0,0.00016438,2]
[419307421,1775137843587,-2500.0,0.00016438,2]
[419307422,1775137843597,-2227.75818254,0.00016438,2]
[419307423,1775137843607,-1525.74412,0.000165,2]
[419307424,1775137843616,-150.0,0.000165,2]
[419307425,1775137843627,-1571.0,0.00016542,2]
[419307426,1775137843637,-1571.0,0.00016542,2]
[419307427,1775137843647,-199.7165,0.000166,12]
[419307428,1775137843657,-277.0,0.000167,7]
[419307429,1775137843671,-2000.0,0.00016719,2]
[419307430,1775137843681,-500.0,0.00016736,2]
[419307431,1775137843691,-183.74,0.00016736,11]
[419307432,1775137843701,-954.65118905,0.0001677,2]
[419307434,1775137843712,-2809.0,0.00016862,2]
[419307436,1775137843723,-4817.47,0.00016922,2]
[419307437,1775137843733,-7348.76,0.00016922,2]
[419307438,1775137843743,-700.0,0.0001697,2]
[419307439,1775137843753,-453.18,0.0001702,2]
[419307440,1775137843765,-11312.07035572,0.00017064,2]
[419307441,1775137843775,-489.53447238,0.0001726,2]
[419307442,1775137843785,-2500.0,0.00017267,2]
[419307443,1775137843794,-453.18,0.00017294,2]
[419307444,1775137843804,-736.0,0.00017354,2]
[419307445,1775137843815,-700.0,0.0001747,2]
[419307446,1775137843825,-453.18,0.00017568,2]
[419307447,1775137843835,-500.0,0.00017727,2]
[419307448,1775137843845,-9999.99,0.00017728,2]
[419307449,1775137843855,-7738.97,0.00017728,2]
[419307450,1775137843865,-150.99,0.00017728,2]
[419307451,1775137843875,-2998.62,0.00017728,2]
[419307452,1775137843886,-4999.99,0.00017728,2]
[419307453,1775137843895,-999.99,0.00017728,2]
[419307454,1775137843905,-299.99,0.00017728,4]
[419307455,1775137843915,-3701.94,0.00017728,2]
[419307456,1775137843925,-150.99,0.00017728,2]
[419307457,1775137843935,-230.4492,0.000178,17]
[419307458,1775137843946,-1689.49668369,0.00017815,2]
[419307459,1775137843955,-402.46,0.00017842,2]
[419307460,1775137843965,-897.7,0.0001868,2]
[419307461,1775137843975,-500.0,0.00018753,2]
[419307462,1775137843986,-1252.0,0.00018779,2]
[419307463,1775137843996,-500.0,0.00018837,2]
[419307464,1775137844006,-560.26992901,0.00018837,2]
[419307465,1775137844018,-500.0,0.00018837,2]
[419307466,1775137844028,-197.11348968,0.00018847,2]
[419307467,1775137844038,-228.49992919,0.00018847,2]
[419307468,1775137844048,-265.9112,0.00019,22]
[419307469,1775137844058,-500.0,0.00019082,2]
[419307470,1775137844068,-500.0,0.00019082,2]
[419307471,1775137844078,-500.0,0.00019082,2]
[419307472,1775137844088,-534.64,0.00019082,2]
[419307473,1775137844098,-166.89,0.00019178,2]
[419307474,1775137844108,-150.0,0.00019178,2]
[419307475,1775137844120,-503.82475333,0.00019244,2]
[419307476,1775137844130,-2706.55744026,0.0001958,2]
[419307477,1775137844140,-2809.0,0.00019681,2]
[419307478,1775137844150,-250.0,0.00019726,2]
[419307479,1775137844160,-308.84564091,0.00019879,2]
[419307480,1775137844169,-176.51,0.00019932,2]
[419307481,1775137844179,-200.0,0.0002,10]
[419307482,1775137844189,-1000.0,0.0002,2]
[419307483,1775137844200,-150.0,0.0002,20]
[419307484,1775137844211,-11312.07035572,0.00020056,2]
[419307485,1775137844220,-300.0,0.000201,10]
[419307486,1775137844230,-306.8301,0.000202,27]
[419307487,1775137844240,-350.0,0.00020274,2]
[419307488,1775137844249,-280.8063574,0.0002048,2]
[419307489,1775137844260,-491.53,0.00020497,2]
[419307490,1775137844270,-500.0,0.00020792,2]
[419307491,1775137844279,-450.0,0.00020822,2]
[419307492,1775137844289,-897.7,0.00020921,2]
[419307493,1775137844298,-500.0,0.00021,2]
[419307494,1775137844308,-5772.1922666,0.00021005,2]
[419307495,1775137844318,-491.53,0.00021009,2]
[419307496,1775137844328,-550.0,0.0002137,2]
[419307497,1775137844337,-354.0458,0.000214,32]
[419307498,1775137844347,-500.0,0.00021416,2]
[419307499,1775137844356,-491.54112601,0.00021521,2]
[419307500,1775137844366,-30000.0,0.00021535,2]
[419307501,1775137844375,-3375.81532785,0.00021616,2]
[419307502,1775137844385,-2608.0,0.00021797,10]
[419307503,1775137844394,-650.0,0.00021918,2]
[419307504,1775137844404,-158.68966667,0.00021918,2]
[419307505,1775137844413,-158.68966667,0.00021918,2]
[419307506,1775137844423,-205.68,0.00021943,2]
[419307507,1775137844433,-364.0,0.00022,2]
[419307508,1775137844442,-740.0,0.00022,2]
[419307509,1775137844452,-884.0,0.00022,2]
[419307510,1775137844461,-2384.0,0.00022,2]
[419307511,1775137844472,-775.0,0.00022,2]
[419307512,1775137844482,-394.0,0.00022,2]
[419307513,1775137844491,-426.23150581,0.00022058,2]
[419307514,1775137844501,-750.0,0.00022466,2]
[419307515,1775137844510,-160.0,0.000225,2]
[419307516,1775137844521,-621.0,0.00022599,2]
[419307517,1775137844530,-1346.0,0.00022599,2]
[419307518,1775137844541,-1046.0,0.00022599,2]
[419307519,1775137844553,-1263.0,0.00022599,2]
[419307520,1775137844564,-925.0,0.00022599,2]
[419307521,1775137844574,-1217.0,0.00022599,2]
[419307522,1775137844583,-250.0,0.00022599,2]
[419307523,1775137844592,-3768.0,0.00022599,2]
[419307524,1775137844602,-150.0,0.00022599,2]
[419307525,1775137844611,-415.0,0.00022599,2]
[419307526,1775137844621,-408.527,0.000226,37]
[419307527,1775137844631,-30973.96,0.00022897,2]
[419307528,1775137844640,-155.83,0.00022914,2]
[419307529,1775137844651,-364.0,0.00023,2]
[419307530,1775137844660,-740.0,0.00023,2]
[419307531,1775137844672,-884.0,0.00023,2]
[419307532,1775137844682,-2384.0,0.00023,2]
[419307533,1775137844692,-170.56917187,0.00023,2]
[419307534,1775137844702,-775.0,0.00023,2]
[419307535,1775137844712,-394.0,0.00023,2]
[419307536,1775137844723,-850.0,0.00023014,2]
[419307537,1775137844732,-500.0,0.00023046,2]
[419307538,1775137844742,-11312.07035572,0.00023047,2]
[419307539,1775137844751,-444.84,0.0002312,2]
[419307540,1775137844760,-2809.0,0.00023139,3]
[419307541,1775137844770,-897.7,0.00023163,2]
[419307542,1775137844780,-200.0,0.00023311,2]
[419307543,1775137844789,-2706.55744026,0.0002332,2]
[419307544,1775137844799,-950.0,0.00023562,2]
[419307545,1775137844809,-2809.0,0.00023779,3]
[419307546,1775137844819,-856.0,0.00023779,3]
[419307547,1775137844828,-471.3919,0.000238,42]
[419307548,1775137844839,-176.51,0.00023964,2]
[419307549,1775137844849,-364.0,0.00024,2]
[419307550,1775137844859,-740.0,0.00024,2]
[419307551,1775137844868,-884.0,0.00024,2]
[419307552,1775137844878,-2384.0,0.00024,2]
[419307553,1775137844888,-775.0,0.00024,2]
[419307554,1775137844897,-394.0,0.00024,2]
[419307555,1775137844907,-1050.0,0.0002411,2]
[419307556,1775137844916,-1039.64995651,0.00024658,2]
[419307557,1775137844926,-150.0,0.00024658,2]
[419307558,1775137844937,-166.89,0.00024658,2]
[419307559,1775137844947,-155.83,0.00024823,2]
[419307560,1775137844956,-543.9306,0.00025,47]
[419307561,1775137844968,-364.0,0.00025,2]
[419307562,1775137844977,-740.0,0.00025,2]
[419307563,1775137844988,-884.0,0.00025,2]
[419307564,1775137844998,-2384.0,0.00025,2]
[419307565,1775137845008,-775.0,0.00025,2]
[419307566,1775137845017,-394.0,0.00025,2]
[419307567,1775137845029,-280.8063574,0.00025022,2]
[419307568,1775137845038,-351.0,0.00025303,2]
[419307569,1775137845048,-897.7,0.00025404,2]
[419307570,1775137845057,-621.0,0.00025599,2]
[419307571,1775137845067,-1346.0,0.00025599,2]
[419307572,1775137845076,-1046.0,0.00025599,2]
[419307573,1775137845086,-1263.0,0.00025599,2]
[419307574,1775137845096,-925.0,0.00025599,2]
[419307575,1775137845106,-1217.0,0.00025599,2]
[419307576,1775137845117,-3768.0,0.00025599,2]
[419307577,1775137845127,-150.0,0.00025599,2]
[419307578,1775137845138,-415.0,0.00025599,2]
[419307579,1775137845148,-150.0,0.0002589,2]
[419307580,1775137845158,-364.0,0.00026,2]
[419307581,1775137845168,-740.0,0.00026,2]
[419307582,1775137845178,-884.0,0.00026,2]
[419307583,1775137845188,-2384.0,0.00026,2]
[419307584,1775137845198,-775.0,0.00026,2]
[419307585,1775137845209,-394.0,0.00026,2]
[419307586,1775137845219,-10019.58388184,0.00026038,2]
[419307587,1775137845276,-1292.48647388,0.00026038,2]
[419307588,1775137845287,-279.68972333,0.00026071,2]
[419307589,1775137845299,-256.75697175,0.00026071,2]
[419307590,1775137845310,-1901.99769742,0.00026071,2]
[419307591,1775137845335,-3333.7478741,0.00026071,2]
[419307592,1775137845345,-209.89722209,0.000263,52]
[419307593,1775137845357,-417.73447791,0.000263,52]
[419307594,1775137845366,-146.21405061,0.00026397,2]
[419307595,1775137845394,-197.63057515,0.00026397,2]
[419307596,1775137845404,-155.83,0.00026733,2]
[419307597,1775137845413,-226.8314382,0.00026999,2]
[419307598,1775137845424,-273.1685618,0.00026999,2]
[419307599,1775137845434,-90.81185777,0.00026999,2]
[419307600,1775137845458,-443.82814223,0.00026999,2]
[419307601,1775137845467,-367.70490647,0.00027,2]
[419307602,1775137845477,-759.71178435,0.00027,2]
[419307603,1775137845486,-903.99780338,0.00027,2]
[419307604,1775137845495,-2398.56282526,0.00027,2]
[419307605,1775137845505,-789.0,0.00027,2]
[419307606,1775137845515,-412.50703723,0.00027,2]
[419307607,1775137845525,-1193.0,0.00027001,7]
[419307608,1775137845534,-784.68027545,0.00027021,2]
[419307609,1775137845545,-252.9257169,0.00027021,2]
[419307610,1775137845557,-152.39400765,0.00027021,2]
[419307611,1775137845566,-1190.0,0.00027043,7]
[419307612,1775137845575,-1944.00599235,0.00027061,2]
[419307615,1775137846339,-2578.09801846,0.00018723,2]
[419307616,1775137846401,-293.23098207,0.00018723,2]
[419307617,1775137846412,-5619.6216257,0.00018723,2]
[419307618,1775137846442,-3726.14162389,0.00018723,2]
[419307619,1775137846453,-16458.37816726,0.00018723,2]
[419307620,1775137850344,-4034.29999998,0.00018723,2]
[419307621,1775137850476,-1595.749985,0.00018723,2]
[419307636,1775139010785,5683.21083164,9.5e-05,3]
[419307652,1775139032411,-2020.50949651,0.00011,2]
[419307653,1775139032420,-250.0,0.00013,2]
[419307654,1775139032430,-195.0,0.00013225,2]
[419307655,1775139032439,-300.0,0.00013448,2]
[419307657,1775139032448,-1200.0,0.00013448,2]
[419307659,1775139032458,-8102.96,0.00013449,2]
[419307661,1775139032467,-500.0,0.00013449,2]
[419307663,1775139032476,-195.0,0.00013498,2]
[419307665,1775139032486,-63.01013067,0.000135,2]
[419307667,1775139032499,-485.98986933,0.000135,2]
[419307669,1775139032508,-2000.0,0.00013603,2]
[419307671,1775139032517,-4527.91,0.00013711,2]
[419307673,1775139032526,-90582.71258239,0.00013838,2]
[419307715,1775139038863,-500.0,0.00013837,2]
[419307717,1775139038873,-500.0,0.00013837,2]
[419307718,1775139038882,-500.0,0.00013837,2]
[419307720,1775139038892,-500.0,0.00013837,2]
[419307722,1775139038901,-500.0,0.00013837,2]
[419307723,1775139038910,-500.0,0.00013837,2]
[419307724,1775139038920,-500.0,0.00013837,2]
[419307725,1775139038929,-619.8447441,0.00013837,2]
[419307726,1775139038939,-500.0,0.00013837,2]
[419307727,1775139038949,-500.0,0.00013837,2]
[419307728,1775139038959,-500.0,0.00013837,2]
[419307729,1775139038968,-500.0,0.00013837,2]
[419307730,1775139038978,-500.0,0.00013837,2]
[419307731,1775139038989,-42330.18811761,0.00013838,2]
[419307732,1775139038998,-150.0,0.00013839,2]
[419307733,1775139039009,-657.0206,0.00013847,2]
[419307734,1775139039019,-500.0,0.00013873,2]
[419307735,1775139039028,-500.0,0.00013873,2]
[419307736,1775139039038,-500.55768791,0.00013873,2]
[419307737,1775139039047,-208.5,0.00013908,2]
[419307738,1775139039057,-150.0,0.00013937,2]
[419307739,1775139039066,-200.0,0.00013938,2]
[419307740,1775139039075,-500.0,0.00013938,2]
[419307741,1775139039084,-500.0,0.00013938,2]
[419307742,1775139039094,-500.0,0.00013938,2]
[419307743,1775139039103,-500.0,0.00013938,2]
[419307744,1775139039112,-500.0,0.00013938,2]
[419307745,1775139039122,-500.0,0.00013938,2]
[419307746,1775139039131,-500.0,0.00013938,2]
[419307747,1775139039141,-500.0,0.00013938,2]
[419307748,1775139039150,-500.0,0.00013938,2]
[419307749,1775139039160,-500.0,0.00013938,2]
[419307750,1775139039169,-500.0,0.00013938,2]
[419307751,1775139039178,-535.14083968,0.00013938,2]
[419307752,1775139039188,-151.0,0.00013938,2]
[419307753,1775139039197,-151.0,0.00013938,2]
[419307754,1775139039207,-151.0,0.00013938,2]
[419307755,1775139039216,-151.0,0.00013938,2]
[419307756,1775139039226,-151.0,0.00013938,2]
[419307757,1775139039235,-151.0,0.00013938,2]
[419307758,1775139039245,-151.0,0.00013938,2]
[419307759,1775139039700,-151.0,0.00013938,2]
[419307760,1775139039710,-151.0,0.00013938,2]
[419307761,1775139039722,-151.0,0.00013938,2]
[419307762,1775139039731,-151.0,0.00013938,2]
[419307763,1775139039742,-151.0,0.00013938,2]
[419307764,1775139039751,-151.0,0.00013938,2]
[419307765,1775139039761,-151.0,0.00013938,2]
[419307766,1775139039771,-151.0,0.00013938,2]
[419307767,1775139039780,-112791.9788,0.00013947,2]
[419307768,1775139039791,-500.0,0.00013973,2]
[419307769,1775139039800,-227.25348961,0.00013973,2]
[419307770,1775139039810,-500.0,0.00013973,2]
[419307771,1775139039819,-500.48315369,0.00013973,2]
[419307772,1775139039829,-500.0,0.00013973,2]
[419307773,1775139039839,-500.0,0.00013973,2]
[419307774,1775139039849,-500.0,0.00013973,2]
[419307775,1775139039858,-389.0016983,0.00013973,2]
[419307776,1775139039868,-500.0,0.00013973,2]
[419307777,1775139039877,-500.0,0.00013973,2]
[419307778,1775139039887,-500.0,0.00013973,2]
[419307779,1775139039898,-561.18350506,0.00013973,2]
[419307780,1775139039908,-500.0,0.00013973,2]
[419307781,1775139039917,-500.0,0.00013973,2]
[419307782,1775139039928,-3022.72,0.00014136,2]
[419307783,1775139039938,-195.0,0.000143,2]
[419307784,1775139039948,-166.08637647,0.00014387,2]
[419307785,1775139039958,-1000.0,0.00014421,2]
[419307786,1775139039968,-1144.9513202,0.00014437,2]
[419307787,1775139039978,-200.0,0.00014486,2]
[419307788,1775139039987,-1000.0,0.00014521,2]
[419307789,1775139039997,-500.0,0.00014521,2]
[419307790,1775139040007,-500.0,0.00014521,2]
[419307791,1775139040017,-1000.0,0.00014521,2]
[419307792,1775139040026,-504.16690782,0.00014521,2]
[419307793,1775139040036,-166.66,0.00014651,2]
[419307794,1775139040044,-150.0,0.000147,2]
[419307795,1775139040054,-500.0,0.0001472,2]
[419307796,1775139040063,-390.0,0.00014741,2]
[419307797,1775139040072,-1232.0,0.00014793,2]
[419307798,1775139040082,-3022.72,0.00014843,2]
[419307799,1775139040091,-1000.0,0.00014968,2]
[419307800,1775139040100,-500.0,0.00014998,2]
[419307801,1775139040110,-300.0,0.00015,2]
[419307802,1775139040119,-5345.46755232,0.00015,7]
[419307803,1775139040128,-216.24645974,0.00015034,2]
[419307804,1775139040137,-255.0,0.00015052,2]
[419307805,1775139040146,-500.0,0.00015068,2]
[419307806,1775139040155,-500.0,0.00015068,2]
[419307807,1775139040165,-800.0,0.00015068,2]
[419307808,1775139040174,-166.66,0.00015135,2]
[419307809,1775139040184,-2000.0,0.00015303,2]
[419307810,1775139040193,-3240.0,0.00015379,2]
[419307811,1775139040203,-1428.25499135,0.000154,2]
[419307812,1775139040212,-1600.0,0.00015475,2]
[419307813,1775139040222,-2000.0,0.000155,2]
[419307814,1775139040231,-3022.72,0.0001555,2]
[419307815,1775139040240,-2000.0,0.000156,2]
[419307816,1775139040251,-166.66,0.00015618,2]
[419307817,1775139040260,-207.32,0.00015715,2]
[419307818,1775139040270,-2500.0,0.00015716,2]
[419307819,1775139040280,-173.5562,0.000158,7]
[419307820,1775139040289,-900.0,0.000158,5]
[419307821,1775139040298,-400.0,0.000158,5]
[419307822,1775139040308,-6334.24164418,0.00015816,2]
[419307823,1775139040317,-206.67308828,0.00015816,2]
[419307824,1775139040327,-835.50325244,0.00015816,2]
[419307825,1775139040337,-500.0,0.00015816,2]
[419307826,1775139040346,-500.0,0.00015816,2]
[419307827,1775139040355,-38208.54994234,0.00015873,2]
[419307828,1775139040364,-2000.0,0.0001589,2]
[419307829,1775139040374,-1900.0,0.000159,5]
[419307830,1775139040385,-800.0,0.000159,5]
[419307831,1775139040394,-307.6820967,0.000159,2]
[419307832,1775139040404,-2737.46621482,0.000159,2]
[419307833,1775139040414,-604.90515533,0.000159,2]
[419307834,1775139040424,-1720.71390901,0.000159,2]
[419307835,1775139040435,-4810.16022219,0.00015915,2]
[419307836,1775139040444,-5017.6078664,0.0001596,2]
[419307837,1775139040454,-341.98742847,0.00015972,2]
[419307838,1775139040463,-500.0,0.00015972,2]
[419307839,1775139040472,-598.99652108,0.00015972,2]
[419307840,1775139040483,-225.97318247,0.00015972,2]
[419307841,1775139040494,-500.0,0.00015972,2]
[419307842,1775139040505,-500.0,0.00015972,2]
[419307843,1775139040515,-500.0,0.00015972,2]
[419307844,1775139040525,-365.46639098,0.00015972,2]
[419307845,1775139040534,-500.0,0.00015972,2]
[419307846,1775139040544,-500.0,0.00015972,2]
[419307847,1775139040553,-191.68666327,0.00015972,2]
[419307848,1775139040563,-500.0,0.00015973,2]
[419307849,1775139040572,-500.0,0.00015973,2]
[419307850,1775139040582,-500.0,0.00015973,2]
[419307851,1775139040591,-500.0,0.00015973,2]
[419307852,1775139040600,-500.0,0.00015973,2]
[419307853,1775139040610,-500.0,0.00015973,2]
[419307854,1775139040619,-503.55252603,0.00015973,2]
[419307855,1775139040629,-201.1346108,0.0001599,2]
[419307856,1775139040639,-1000.0,0.00016,2]
[419307857,1775139040648,-126124.199782,0.00016,2]
[419307858,1775139041147,-2757.56066639,0.00013739,2]
[419307859,1775139041158,-402.38560292,0.00013739,2]
[419307860,1775139041169,-3451.94947151,0.00013739,2]
[419307861,1775139041197,-14547.13646034,0.00013739,2]
[419307862,1775139041206,-1147192.22045082,0.00016,2]
[419307863,1775139041215,-208.63150306,0.00016,2]
[419307864,1775139041225,-957926.97059864,0.00016,2]
[419307865,1775139041236,-450.2963016,0.00016,2]
[419307884,1775139046130,-1069.61097426,0.00014758,2]
[419307885,1775139046184,-2410.34740114,0.00014758,2]
[419307891,1775139049543,-2644.12,0.00014758,2]
[419307892,1775139049559,-1351.639954,0.00014758,2]
[419307893,1775139049571,-1136.82271602,0.00014758,2]
[419307894,1775139049582,-12546.49115565,0.00014758,2]
[419307895,1775139049592,-300.0,0.000151,2]
[419307896,1775139049603,-2000.0,0.000157,2]
[419307897,1775139049613,-2000.0,0.000158,2]
[419307898,1775139049622,-2000.0,0.000159,2]
[419307899,1775139049632,-21248.53880387,0.00016,2]
[419307900,1775139049643,-2165.32927259,0.00016,2]
[419307901,1775139049652,-2000.0,0.00016,2]
[419307902,1775139049662,-500.0,0.00016015,2]
[419307903,1775139049671,-500.0,0.00016015,2]
[419307904,1775139049681,-500.0,0.00016015,2]
[419307905,1775139049690,-500.0,0.00016015,2]
[419307906,1775139049700,-500.0,0.00016015,2]
[419307907,1775139049710,-500.0,0.00016015,2]
[419307908,1775139049719,-500.0,0.00016015,2]
[419307909,1775139049728,-500.0,0.00016015,2]
[419307911,1775139049737,-500.0,0.00016015,2]
[419307912,1775139049747,-500.0,0.00016015,2]
[419307913,1775139049757,-500.0,0.00016015,2]
[419307915,1775139049767,-500.0,0.00016015,2]
[419307917,1775139049777,-500.0,0.00016015,2]
[419307919,1775139049786,-500.0,0.00016015,2]
[419307921,1775139049795,-500.0,0.00016015,2]
[419307923,1775139049806,-500.0,0.00016015,2]
[419307939,1775139049960,-208.63150306,0.000161,2]
[419307941,1775139049978,-578.66556129,0.000161,2]
[419307942,1775139050070,-1326.96,0.000161,2]
[419307947,1775139528019,-541.0,0.000135,2]
[419307948,1775139528042,-191.0507169,0.0001357,2]
[419307949,1775139528067,-1558.956,0.0001357,2]
[419307950,1775139528092,-2182.88,0.00013603,2]
[419307951,1775139528114,-1206.07,0.00013603,2]
[419307952,1775139528138,-200.0,0.00013699,2]
[419307957,1775139627306,-150.0,0.00013746,2]
[419307958,1775139627334,-3961.0,0.00013747,2]
[419308134,1775139864799,-200.0,0.00013189,2]
[419308135,1775139864824,-352.0,0.000135,2]
[419308147,1775139880516,-190.0,0.000135,2]
[419308148,1775139880539,-166.66,0.00013699,2]
[419308149,1775139880561,-300.0,0.000137,2]
[419308150,1775139880583,-343.34,0.000137,2]
[419308228,1775139895455,-1000.0,0.000137,2]
[419308249,1775139902413,-1000.0,0.000137,2]
[419308272,1775139915763,-150.0,0.00013562,2]
[419308297,1775139927531,-156.32,0.00012869,2]
[419308298,1775139927552,-150.0,0.00013562,2]
[419308299,1775139927576,-150.0,0.00013562,2]
[419308300,1775139927597,-150.0,0.00013562,2]
[419308301,1775139927618,-150.0,0.00013562,2]
[419308302,1775139927639,-150.0,0.00013562,2]
[419308303,1775139927661,-150.0,0.00013562,2]
[419308304,1775139927682,-16.68,0.00013562,2]
[419308366,1775139943225,-133.32,0.00013562,2]
[419308367,1775139943253,-150.0,0.00013562,2]
[419308368,1775139943282,-13.68,0.00013562,2]
[419308413,1775139960190,-136.32,0.00013562,2]
[419308414,1775139960217,-150.0,0.00013562,2]
[419308415,1775139960244,-150.0,0.00013562,2]
[419308417,1775139960271,-150.0,0.00013562,2]
[419308418,1775139960297,-150.0,0.00013562,2]
[419308423,1775139968251,-150.0,0.00013615,2]
[419308424,1775139968274,-150.0,0.00013624,2]
[419308425,1775139968295,-150.0,0.00013624,2]
[419308426,1775139968317,-150.0,0.00013627,2]
[419308427,1775139968339,-150.0,0.00013656,2]
[419308428,1775139968360,-112.68,0.00013656,2]
[419308577,1775140119307,-250.0,0.00013,2]
[419308578,1775140119334,-1250.0,0.00013647,2]
[419308626,1775140232589,-1500.0,0.00012824,2]
[419308627,1775140232601,-393.8986826,0.000135,2]
[419308638,1775140238292,-148.1013174,0.000135,2]
[419308640,1775140238302,-754.68196826,0.00013647,2]
[419308641,1775140238556,-373.21476352,0.00013647,2]
[419308695,1775140240536,-667.41963037,0.00013647,2]